fUST/lending_fUST_20250614
["ID","MTS","AMOUNT","RATE_DAILY","PERIOD"]
[365702825,1749835651820,-1298.86,0.00024657,4]
[365702826,1749835651843,-465.89,0.00024657,4]
[365702827,1749835651866,-174.4674046,0.00024657,4]
[365702828,1749835651888,-460.0,0.00024657,4]
[365702829,1749835651911,-2449.58,0.00024657,4]
[365702830,1749835651936,-957.7,0.00024657,4]
[365702831,1749835651959,-1045.34,0.00024657,4]
[365702832,1749835651983,-1218.09,0.00024657,4]
[365702833,1749835652014,-460.0,0.00024657,4]
[365702834,1749835652161,-1102.65,0.00024657,4]
[365702835,1749835652186,-1572.95,0.00024657,4]
[365702836,1749835652213,-460.0,0.00024657,4]
[365702837,1749835652234,-2000.0,0.00024658,60]
[365702838,1749835652254,-1000.0,0.00024658,2]
[365702839,1749835652274,-1000.0,0.00024658,2]
[365702840,1749835652296,-1000.0,0.00024658,2]
[365702841,1749835652318,-1000.0,0.00024658,2]
[365702842,1749835652338,-1000.0,0.00024658,2]
[365702843,1749835652358,-1000.0,0.00024658,2]
[365702844,1749835652379,-1000.0,0.00024658,2]
[365702845,1749835652401,-1000.0,0.00024658,2]
[365702846,1749835652422,-1000.0,0.00024658,2]
[365702847,1749835652442,-1000.0,0.00024658,2]
[365702848,1749835652463,-1000.0,0.00024658,2]
[365702849,1749835652483,-1000.0,0.00024658,2]
[365702850,1749835652504,-1000.0,0.00024658,2]
[365702851,1749835652524,-1000.0,0.00024658,2]
[365702852,1749835652545,-1000.0,0.00024658,2]
[365702853,1749835652567,-1000.0,0.00024658,2]
[365702854,1749835652588,-1000.0,0.00024658,2]
[365702855,1749835652608,-1000.0,0.00024658,2]
[365702856,1749835652629,-1000.0,0.00024658,2]
[365702857,1749835652649,-1000.0,0.00024658,2]
[365702858,1749835652669,-1000.0,0.00024658,2]
[365702859,1749835652690,-1000.0,0.00024658,2]
[365702860,1749835652714,-1000.0,0.00024658,2]
[365702861,1749835652735,-1000.0,0.00024658,2]
[365702862,1749835652755,-1000.0,0.00024658,2]
[365702863,1749835652776,-1000.0,0.00024658,2]
[365702864,1749835652798,-1000.0,0.00024658,2]
[365702865,1749835652821,-1000.0,0.00024658,2]
[365702866,1749835652841,-1000.0,0.00024658,2]
[365702867,1749835652862,-1000.0,0.00024658,2]
[365702868,1749835652882,-1000.0,0.00024658,2]
[365702869,1749835652904,-1000.0,0.00024658,2]
[365702870,1749835652924,-1000.0,0.00024658,2]
[365702871,1749835652945,-1000.0,0.00024658,2]
[365702872,1749835652966,-1000.0,0.00024658,2]
[365702873,1749835652992,-1000.0,0.00024658,2]
[365702874,1749835653014,-1000.0,0.00024658,2]
[365702875,1749835653037,-1000.0,0.00024658,2]
[365702876,1749835653060,-1000.0,0.00024658,2]
[365702877,1749835653086,-1000.0,0.00024658,2]
[365702878,1749835653108,-1000.0,0.00024658,2]
[365702879,1749835653131,-1000.0,0.00024658,2]
[365702880,1749835653155,-1000.0,0.00024658,2]
[365702881,1749835653177,-1000.0,0.00024658,2]
[365702882,1749835653201,-1000.0,0.00024658,2]
[365702883,1749835653224,-1000.0,0.00024658,2]
[365702884,1749835653247,-380.0,0.00024658,2]
[365702885,1749835653272,-1000.0,0.00024658,2]
[365702886,1749835653297,-200.0,0.00024658,15]
[365702887,1749835653320,-1000.0,0.00024658,2]
[365702888,1749835653342,-558.0,0.00024658,2]
[365702889,1749835653367,-200.0,0.00024667,120]
[365702890,1749835653389,-318.0484054,0.0002467,60]
[365702891,1749835653412,-200.0,0.00024675,120]
[365702892,1749835653434,-4821.69623784,0.00024675,2]
[365702893,1749835653457,-200.0,0.00024676,120]
[365702894,1749835653479,-645.66,0.00024684,4]
[365702895,1749835653501,-558.0,0.00024685,2]
[365702896,1749835653522,-1000.0,0.000247,7]
[365702897,1749835653544,-294445.56210398,0.000247,30]
[365702905,1749835711072,200.0,0.00023985,120]
[365702906,1749835714325,1000000.13652343,0.00024922,120]
[365702908,1749835723376,477.51905485,0.00024922,120]
[365702911,1749835830777,200.0,0.00024065,120]
[365702972,1749835832296,-639.48532399,0.00019,2]
[365702974,1749835832307,-163.828219,0.00020271,2]
[365702976,1749835832316,-207.95099095,0.000209,4]
[365702978,1749835832326,-17.79133314,0.00020964,2]
[365702993,1749835832459,-482.20866686,0.00020964,2]
[365702995,1749835832468,-199.32678703,0.00020995,2]
[365702997,1749835832478,-173.86454611,0.00021094,2]
[365703002,1749835832515,-126.13545389,0.00021094,2]
[365703004,1749835832524,-460.0,0.00021095,4]
[365703006,1749835832535,-440.0,0.00021095,4]
[365703008,1749835832544,-460.0,0.00021095,4]
[365703010,1749835832553,-460.0,0.00021095,4]
[365703027,1749835832704,-560.0,0.00021095,4]
[365703029,1749835832714,-420.0,0.00021095,4]
[365703031,1749835832723,-440.0,0.00021095,4]
[365703033,1749835832734,-460.0,0.00021095,4]
[365703035,1749835832744,-185.74415375,0.00021095,4]
[365703038,1749835832755,-274.25584625,0.00021095,4]
[365703040,1749835832765,-460.0,0.00021095,4]
[365703042,1749835832774,-440.0,0.00021095,4]
[365703044,1749835832784,-440.0,0.00021095,4]
[365703046,1749835832793,-460.0,0.00021095,4]
[365703048,1749835832803,-460.0,0.00021095,4]
[365703050,1749835832812,-1441.06,0.00021095,4]
[365703052,1749835832822,-440.0,0.00021095,4]
[365703054,1749835832831,-371.67247082,0.00021095,4]
[365703059,1749835832874,-68.32752918,0.00021095,4]
[365703061,1749835832883,-515.59,0.00021095,4]
[365703063,1749835832893,-460.0,0.00021095,4]
[365703065,1749835832903,-460.0,0.00021095,4]
[365703067,1749835832912,-460.0,0.00021095,4]
[365703069,1749835832922,-440.0,0.00021095,4]
[365703071,1749835832931,-440.0,0.00021095,4]
[365703073,1749835832941,-440.0,0.00021095,4]
[365703075,1749835832950,-431.55632666,0.00021095,4]
[365703077,1749835832960,-440.0,0.00021095,4]
[365703079,1749835832970,-495.29090507,0.00021095,4]
[365703081,1749835832979,-402.31059185,0.00021095,4]
[365703083,1749835832989,-440.0,0.00021095,4]
[365703085,1749835832999,-440.0,0.00021095,4]
[365703087,1749835833009,-460.0,0.00021095,4]
[365703089,1749835833019,-460.0,0.00021095,4]
[365703091,1749835833029,-722.9,0.00021095,4]
[365703093,1749835833039,-440.0,0.00021095,4]
[365703095,1749835833054,-333.70321338,0.00021095,4]
[365703097,1749835833063,-460.0,0.00021095,4]
[365703100,1749835833073,-375.9245237,0.00021095,4]
[365703102,1749835833083,-500.0,0.00021095,4]
[365703104,1749835833093,-460.0,0.00021095,4]
[365703106,1749835833102,-460.0,0.00021095,4]
[365703108,1749835833112,-460.0,0.00021095,4]
[365703109,1749835833122,-460.0,0.00021095,4]
[365703110,1749835833132,-564.14,0.00021095,4]
[365703111,1749835833142,-460.0,0.00021095,4]
[365703112,1749835833152,-432.09181388,0.00021095,4]
[365703113,1749835833162,-430.0,0.00021095,4]
[365703114,1749835833173,-460.0,0.00021095,4]
[365703115,1749835833183,-430.0,0.00021095,4]
[365703116,1749835833194,-460.0,0.00021095,4]
[365703117,1749835833204,-460.0,0.00021095,4]
[365703118,1749835833215,-460.0,0.00021095,4]
[365703119,1749835833224,-460.0,0.00021095,4]
[365703120,1749835833234,-460.0,0.00021095,4]
[365703121,1749835833243,-460.0,0.00021095,4]
[365703122,1749835833253,-583.73,0.00021095,4]
[365703123,1749835833262,-511.55,0.00021095,4]
[365703124,1749835833272,-460.0,0.00021095,4]
[365703125,1749835833281,-460.0,0.00021095,4]
[365703126,1749835833291,-283.97046111,0.00021095,4]
[365703127,1749835833300,-390.0,0.00021095,4]
[365703128,1749835833310,-528.78,0.00021369,4]
[365703129,1749835833320,-460.0,0.00021369,4]
[365703130,1749835833329,-460.0,0.00021369,4]
[365703131,1749835833338,-460.0,0.00021369,4]
[365703132,1749835833348,-460.0,0.00021369,4]
[365703134,1749835833358,-370.0,0.00021369,4]
[365703135,1749835833368,-460.0,0.00021369,4]
[365703137,1749835833378,-460.0,0.00021369,4]
[365703139,1749835833387,-1441.06,0.00021369,4]
[365703141,1749835833397,-515.59,0.00021369,4]
[365703143,1749835833407,-460.0,0.00021369,4]
[365703145,1749835833416,-400.0,0.00021369,4]
[365703147,1749835833426,-460.0,0.00021369,4]
[365703149,1749835833437,-460.0,0.00021369,4]
[365703151,1749835833447,-460.0,0.00021369,4]
[365703153,1749835833456,-722.9,0.00021369,4]
[365703155,1749835833467,-460.0,0.00021369,4]
[365703157,1749835833476,-460.0,0.00021369,4]
[365703159,1749835833487,-500.57069289,0.00021369,4]
[365703161,1749835833497,-460.0,0.00021369,4]
[365703163,1749835833507,-460.0,0.00021369,4]
[365703165,1749835833517,-460.0,0.00021369,4]
[365703167,1749835833527,-460.0,0.00021369,4]
[365703169,1749835833536,-460.0,0.00021369,4]
[365703171,1749835833546,-460.0,0.00021369,4]
[365703173,1749835833555,-460.0,0.00021369,4]
[365703175,1749835833565,-460.0,0.00021369,4]
[365703177,1749835833574,-385.92001821,0.00021369,4]
[365703179,1749835833583,-583.73,0.00021369,4]
[365703181,1749835833593,-460.0,0.00021369,4]
[365703183,1749835833603,-420.0,0.00021624,4]
[365703185,1749835833612,-460.0,0.00021624,4]
[365703186,1749835833622,-512.94,0.00021624,4]
[365703187,1749835833632,-430.0,0.00021624,4]
[365703188,1749835833641,-460.0,0.00021624,4]
[365703189,1749835833651,-1289.02,0.00021624,4]
[365703191,1749835833661,-460.0,0.00021624,4]
[365703192,1749835833671,-460.0,0.00021624,4]
[365703194,1749835833681,-562.89,0.00021624,4]
[365703195,1749835833692,-460.0,0.00021643,4]
[365703197,1749835833702,-460.0,0.00021643,4]
[365703199,1749835833711,-1441.06,0.00021643,4]
[365703201,1749835833720,-515.59,0.00021643,4]
[365703203,1749835833730,-460.0,0.00021643,4]
[365703205,1749835833740,-460.0,0.00021643,4]
[365703207,1749835833749,-722.9,0.00021643,4]
[365703209,1749835833759,-460.0,0.00021643,4]
[365703211,1749835833769,-460.0,0.00021643,4]
[365703213,1749835833779,-460.0,0.00021643,4]
[365703215,1749835833788,-460.0,0.00021643,4]
[365703217,1749835833798,-460.0,0.00021643,4]
[365703219,1749835833807,-460.0,0.00021643,4]
[365703221,1749835833817,-460.0,0.00021643,4]
[365703223,1749835833827,-583.73,0.00021643,4]
[365703225,1749835833836,-460.0,0.00021643,4]
[365703227,1749835833845,-440.0,0.00021898,4]
[365703229,1749835833855,-512.94,0.00021898,4]
[365703230,1749835833864,-460.0,0.00021898,4]
[365703232,1749835833874,-1289.02,0.00021898,4]
[365703234,1749835833884,-460.0,0.00021898,4]
[365703237,1749835833894,-460.0,0.00021898,4]
[365703238,1749835833904,-562.89,0.00021898,4]
[365703240,1749835833914,-460.0,0.00021917,4]
[365703242,1749835833923,-1441.06,0.00021917,4]
[365703244,1749835833932,-515.59,0.00021917,4]
[365703246,1749835833942,-460.0,0.00021917,4]
[365703248,1749835833952,-722.9,0.00021917,4]
[365703250,1749835833962,-460.0,0.00021917,4]
[365703252,1749835833971,-460.0,0.00021917,4]
[365703254,1749835833980,-460.0,0.00021917,4]
[365703256,1749835833990,-460.0,0.00021917,4]
[365703258,1749835833999,-583.73,0.00021917,4]
[365703260,1749835834009,-306.52,0.0002199,10]
[365703262,1749835834018,-390.31,0.0002199,10]
[365703264,1749835834027,-10765.88673879,0.00022,2]
[365703266,1749835834037,-6134.40029262,0.00022,2]
[365703415,1749835840921,-460.0,0.00021095,4]
[365703416,1749835840931,-460.0,0.00021095,4]
[365703417,1749835840940,-460.0,0.00021095,4]
[365703418,1749835840951,-460.0,0.00021369,4]
[365703419,1749835840961,-460.0,0.00021369,4]
[365703420,1749835840970,-460.0,0.00021643,4]
[365703421,1749835840980,-460.0,0.00021643,4]
[365703422,1749835840990,-460.0,0.00021917,4]
[365703423,1749835841000,-1448.10349131,0.00022,2]
[365703424,1749835841009,-9217.80905969,0.00022,2]
[365703425,1749835841020,-3148.32979495,0.00022,2]
[365703450,1749835843300,-711.16,0.00021624,4]
[365703453,1749835843354,-27.57,0.00021624,4]
[365703454,1749835843364,-244.46743313,0.00021898,4]
[365703455,1749835843627,-494.26256687,0.00021898,4]
[365703456,1749835843637,-1132.19378113,0.00022,2]
[365703459,1749835848563,-460.0,0.00021095,4]
[365703460,1749835848573,-440.0,0.00021095,4]
[365703461,1749835848583,-490.66,0.00021369,4]
[365703462,1749835848592,-21000.669429,0.00022,2]
[365703463,1749835848945,-2449.991885,0.00022,2]
[365703464,1749835849899,-39344.93056703,0.00022,2]
[365703465,1749835849909,-424.32678023,0.00022147,2]
[365703466,1749835849918,-512.94,0.00022172,4]
[365703467,1749835849927,-460.0,0.00022172,4]
[365703468,1749835849937,-1289.02,0.00022172,4]
[365703469,1749835849947,-460.0,0.00022172,4]
[365703470,1749835849958,-460.0,0.00022172,4]
[365703471,1749835849967,-562.89,0.00022172,4]
[365703472,1749835849977,-649.25826574,0.00022172,4]
[365703473,1749835859744,-433.05810381,0.00021095,4]
[365703474,1749835859754,-468.4992179,0.00021999,2]
[365703475,1749835859763,-380.12451917,0.00021999,2]
[365703476,1749835859773,-89.47173426,0.00022172,4]
[365703477,1749835859782,-300.0,0.0002219,2]
[365703478,1749835859791,-460.0,0.00022191,4]
[365703479,1749835859800,-1441.06,0.00022191,4]
[365703480,1749835859810,-515.59,0.00022191,4]
[365703481,1749835859819,-460.0,0.00022191,4]
[365703482,1749835859829,-722.9,0.00022191,4]
[365703483,1749835859838,-224.87,0.00022191,4]
[365703484,1749835859848,-460.0,0.00022191,4]
[365703485,1749835859857,-460.0,0.00022191,4]
[365703486,1749835859866,-417.05098742,0.00022191,4]
[365703487,1749835859876,-583.73,0.00022191,4]
[365703488,1749835859885,-460.0,0.00022191,4]
[365703489,1749835859894,-512.94,0.00022446,4]
[365703490,1749835859904,-460.0,0.00022446,4]
[365703491,1749835859914,-124.64514444,0.00022446,4]
[365703492,1749835860916,-1164.37485556,0.00022446,4]
[365703493,1749835860925,-460.0,0.00022446,4]
[365703494,1749835860935,-460.0,0.00022446,4]
[365703495,1749835860945,-562.89,0.00022446,4]
[365703496,1749835860955,-738.73,0.00022446,4]
[365703497,1749835860965,-212.67,0.00022465,4]
[365703498,1749835860974,-1441.06,0.00022465,4]
[365703499,1749835860984,-515.59,0.00022465,4]
[365703500,1749835860994,-460.0,0.00022465,4]
[365703501,1749835861003,-722.9,0.00022465,4]
[365703502,1749835861013,-460.0,0.00022465,4]
[365703503,1749835861022,-460.0,0.00022465,4]
[365703504,1749835861031,-583.73,0.00022465,4]
[365703505,1749835861040,-460.0,0.00022465,4]
[365703506,1749835861051,-325.26,0.0002259,10]
[365703507,1749835861062,-452.91422535,0.000226,2]
[365703508,1749835861071,-512.94,0.0002272,4]
[365703509,1749835861081,-460.0,0.0002272,4]
[365703510,1749835861090,-1289.02,0.0002272,4]
[365703511,1749835861100,-460.0,0.0002272,4]
[365703512,1749835861109,-460.0,0.0002272,4]
[365703513,1749835861119,-562.89,0.0002272,4]
[365703514,1749835861129,-738.73,0.0002272,4]
[365703515,1749835861138,-1441.06,0.00022739,4]
[365703516,1749835861147,-515.59,0.00022739,4]
[365703517,1749835861156,-460.0,0.00022739,4]
[365703518,1749835861166,-722.9,0.00022739,4]
[365703519,1749835861175,-555.86897917,0.00022739,4]
[365703520,1749835861184,-460.0,0.00022739,4]
[365703521,1749835861193,-583.73,0.00022739,4]
[365703522,1749835861202,-287.39966809,0.00022739,4]
[365703523,1749835861212,-420.0,0.00022943,2]
[365703524,1749835861222,-512.94,0.00022994,4]
[365703525,1749835861231,-460.0,0.00022994,4]
[365703526,1749835861241,-1289.02,0.00022994,4]
[365703527,1749835861250,-460.0,0.00022994,4]
[365703528,1749835861259,-460.0,0.00022994,4]
[365703529,1749835861268,-562.89,0.00022994,4]
[365703530,1749835861277,-738.73,0.00022994,4]
[365703531,1749835861286,-1441.06,0.00023013,4]
[365703532,1749835861295,-515.59,0.00023013,4]
[365703533,1749835861303,-460.0,0.00023013,4]
[365703534,1749835861313,-722.9,0.00023013,4]
[365703535,1749835861322,-460.0,0.00023013,4]
[365703536,1749835861331,-583.73,0.00023013,4]
[365703537,1749835861341,-160.0,0.00023153,2]
[365703538,1749835861350,-229.78555783,0.00023153,2]
[365703539,1749835861359,-835.28007164,0.00023153,2]
[365703540,1749835861368,-500.0,0.00023156,2]
[365703541,1749835861378,-512.94,0.00023268,4]
[365703542,1749835861388,-460.0,0.00023268,4]
[365703543,1749835861397,-1289.02,0.00023268,4]
[365703544,1749835861407,-460.0,0.00023268,4]
[365703545,1749835861417,-460.0,0.00023268,4]
[365703546,1749835861426,-562.89,0.00023268,4]
[365703547,1749835861436,-738.73,0.00023268,4]
[365703548,1749835861445,-1156.55419765,0.00023287,4]
[365703558,1749835863565,-284.50580235,0.00023287,4]
[365703559,1749835863575,-515.59,0.00023287,4]
[365703560,1749835863584,-460.0,0.00023287,4]
[365703561,1749835863594,-722.9,0.00023287,4]
[365703562,1749835863603,-460.0,0.00023287,4]
[365703563,1749835863612,-583.73,0.00023287,4]
[365703564,1749835863622,-1360.35,0.00023524,2]
[365703565,1749835863632,-512.94,0.00023542,4]
[365703566,1749835863641,-460.0,0.00023542,4]
[365703567,1749835863651,-1289.02,0.00023542,4]
[365703568,1749835863661,-460.0,0.00023542,4]
[365703569,1749835863671,-460.0,0.00023542,4]
[365703570,1749835863680,-562.89,0.00023542,4]
[365703571,1749835863690,-738.73,0.00023542,4]
[365703572,1749835863699,-1441.06,0.00023561,4]
[365703573,1749835863708,-515.59,0.00023561,4]
[365703574,1749835863719,-460.0,0.00023561,4]
[365703575,1749835863728,-722.9,0.00023561,4]
[365703576,1749835863738,-460.0,0.00023561,4]
[365703577,1749835863747,-583.73,0.00023561,4]
[365703578,1749835863757,-15702.59449302,0.00023613,7]
[365703579,1749835863767,-1054.79,0.000238,2]
[365703580,1749835863776,-512.94,0.00023816,4]
[365703581,1749835863786,-460.0,0.00023816,4]
[365703582,1749835863796,-1289.02,0.00023816,4]
[365703583,1749835863807,-460.0,0.00023816,4]
[365703584,1749835863817,-460.0,0.00023816,4]
[365703585,1749835863827,-562.89,0.00023816,4]
[365703586,1749835863838,-738.73,0.00023816,4]
[365703587,1749835863848,-1441.06,0.00023835,4]
[365703588,1749835863858,-515.59,0.00023835,4]
[365703589,1749835863868,-460.0,0.00023835,4]
[365703590,1749835863878,-722.9,0.00023835,4]
[365703591,1749835863888,-460.0,0.00023835,4]
[365703592,1749835863897,-583.73,0.00023835,4]
[365703593,1749835863908,-229.78555783,0.00024,7]
[365703594,1749835863918,-424.32678023,0.00024,7]
[365703595,1749835863927,-2200.0,0.00024003,2]
[365703596,1749835863937,-512.94,0.0002409,4]
[365703597,1749835863946,-460.0,0.0002409,4]
[365703598,1749835863956,-1289.02,0.0002409,4]
[365703599,1749835863968,-460.0,0.0002409,4]
[365703600,1749835863978,-460.0,0.0002409,4]
[365703601,1749835863989,-562.89,0.0002409,4]
[365703602,1749835863999,-738.73,0.0002409,4]
[365703603,1749835864008,-420.0,0.00024108,2]
[365703604,1749835864018,-1441.06,0.00024109,4]
[365703605,1749835864028,-515.59,0.00024109,4]
[365703606,1749835864038,-460.0,0.00024109,4]
[365703607,1749835864048,-722.9,0.00024109,4]
[365703608,1749835864062,-274.21763592,0.00024109,4]
[365703609,1749835864072,-583.73,0.00024109,4]
[365703610,1749835864082,-1699.512315,0.00024191,3]
[365703611,1749835864093,-271.05,0.00024311,10]
[365703612,1749835864103,-80671.55411365,0.00024321,3]
[365703613,1749835864137,-4218.17350923,0.00024321,3]
[365703614,1749835864147,-229.78555783,0.00024321,3]
[365703615,1749835864158,-424.32678023,0.00024321,3]
[365703616,1749835864167,-512.94,0.00024364,4]
[365703617,1749835864177,-460.0,0.00024364,4]
[365703618,1749835864187,-1289.02,0.00024364,4]
[365703619,1749835864197,-460.0,0.00024364,4]
[365703620,1749835864207,-460.0,0.00024364,4]
[365703621,1749835864219,-562.89,0.00024364,4]
[365703622,1749835864230,-738.73,0.00024364,4]
[365703623,1749835864240,-1441.06,0.00024383,4]
[365703624,1749835864250,-515.59,0.00024383,4]
[365703625,1749835864260,-460.0,0.00024383,4]
[365703626,1749835864271,-722.9,0.00024383,4]
[365703627,1749835864281,-583.73,0.00024383,4]
[365703628,1749835864291,-512.94,0.00024638,4]
[365703629,1749835864301,-460.0,0.00024638,4]
[365703630,1749835864311,-1289.02,0.00024638,4]
[365703631,1749835864321,-460.0,0.00024638,4]
[365703632,1749835864331,-460.0,0.00024638,4]
[365703633,1749835864341,-562.89,0.00024638,4]
[365703634,1749835864352,-738.73,0.00024638,4]
[365703635,1749835864362,-1441.06,0.00024657,4]
[365703636,1749835864371,-515.59,0.00024657,4]
[365703637,1749835864381,-460.0,0.00024657,4]
[365703638,1749835864390,-722.9,0.00024657,4]
[365703639,1749835864400,-583.73,0.00024657,4]
[365703640,1749835864409,-1000.0,0.00024658,2]
[365703641,1749835864419,-207.4,0.0002469,2]
[365703642,1749835864428,-77834.11471162,0.000247,30]
[365703643,1749835864441,-12805.06591653,0.000247,30]
[365703644,1749835864451,-1903.06340429,0.000247,2]
[365703645,1749835864461,-4821.69623784,0.00024705,2]
[365703646,1749835864471,-200.0,0.00024719,120]
[365703647,1749835864481,-4821.69623784,0.00024734,2]
[365703648,1749835864489,-224.66716219,0.00024734,30]
[365703649,1749835864499,-160.0,0.0002475,6]
[365703650,1749835864509,-160.0,0.0002475,5]
[365703651,1749835864518,-200.0,0.00024751,120]
[365703652,1749835864528,-1903.06340428,0.00024761,2]
[365703653,1749835864538,-4821.69623784,0.00024763,2]
[365703654,1749835864548,-200.0,0.00024764,120]
[365703655,1749835864557,-150.0,0.00024773,2]
[365703656,1749835864567,-200.0,0.00024784,120]
[365703657,1749835864576,-4821.69623784,0.00024793,2]
[365703658,1749835864586,-4362.17167958,0.000248,2]
[365703659,1749835864596,-14000.0,0.000248,14]
[365703660,1749835864606,-400.097868,0.000248,120]
[365703661,1749835864616,-9455.4844309,0.000248,120]
[365703662,1749835864626,-2000.0,0.000248,120]
[365703663,1749835864635,-208.0,0.000248,2]
[365703664,1749835864644,-153.7149,0.000248,7]
[365703665,1749835864653,-151.0,0.000248,7]
[365703666,1749835864663,-151.0,0.000248,7]
[365703667,1749835864673,-151.0,0.000248,7]
[365703668,1749835864682,-151.0,0.000248,7]
[365703669,1749835864691,-151.0,0.000248,7]
[365703670,1749835864700,-151.0,0.000248,7]
[365703671,1749835864709,-151.0,0.000248,7]
[365703672,1749835864720,-151.0,0.000248,7]
[365703673,1749835864730,-230.324519,0.000248,7]
[365703674,1749835864739,-151.0,0.000248,7]
[365703675,1749835864749,-230.324519,0.000248,7]
[365703676,1749835864759,-151.0,0.000248,7]
[365703677,1749835864768,-151.0,0.000248,7]
[365703678,1749835864778,-151.0,0.000248,7]
[365703679,1749835864787,-151.0,0.000248,7]
[365703680,1749835864797,-511.0,0.000248,2]
[365703681,1749835864806,-151.0,0.000248,7]
[365703682,1749835864816,-200.0,0.0002482,120]
[365703683,1749835864825,-151.0,0.00024822,7]
[365703684,1749835864834,-151.0,0.00024822,7]
[365703685,1749835864843,-151.0,0.00024822,7]
[365703686,1749835864852,-151.0,0.00024822,7]
[365703687,1749835864861,-4821.69623784,0.00024822,2]
[365703688,1749835864871,-151.0,0.00024822,7]
[365703689,1749835864880,-898.21079987,0.00024822,2]
[365703690,1749835866821,-1004.85260441,0.00024822,2]
[365703691,1749835866831,-151.0,0.00024822,7]
[365703692,1749835866840,-511.0,0.00024827,2]
[365703693,1749835866850,-151.0,0.00024829,7]
[365703694,1749835866860,-511.0,0.00024855,2]
[365703695,1749835866869,-200.0,0.00024865,120]
[365703696,1749835866878,-151.0,0.00024865,7]
[365703697,1749835866887,-151.0,0.00024865,7]
[365703698,1749835866896,-199.762674,0.00024865,7]
[365703699,1749835866906,-200.0,0.00024871,120]
[365703700,1749835866915,-500.0,0.00024873,2]
[365703701,1749835866924,-511.0,0.00024882,2]
[365703702,1749835866933,-645.66,0.00024884,4]
[365703703,1749835866942,-500.0,0.00024885,2]
[365703704,1749835866952,-500.0,0.00024885,2]
[365703705,1749835866961,-500.0,0.00024885,2]
[365703706,1749835866972,-500.0,0.00024885,2]
[365703707,1749835866981,-500.0,0.00024885,2]
[365703708,1749835866991,-500.0,0.00024885,2]
[365703709,1749835867000,-500.0,0.00024885,2]
[365703710,1749835867009,-500.0,0.00024885,2]
[365703711,1749835867019,-500.0,0.00024885,2]
[365703712,1749835867028,-500.0,0.00024885,2]
[365703713,1749835867038,-500.0,0.00024885,2]
[365703714,1749835867048,-500.0,0.00024885,2]
[365703715,1749835867062,-500.0,0.00024885,2]
[365703716,1749835867071,-500.0,0.00024885,2]
[365703717,1749835867081,-500.0,0.00024885,2]
[365703718,1749835867091,-331.5669933,0.00024899,14]
[365703719,1749835867168,-511.3330067,0.00024899,14]
[365703720,1749835867177,-8854.68154665,0.000249,7]
[365703721,1749835867188,-804.40828624,0.000249,7]
[365703722,1749835867199,-803.9437687,0.000249,7]
[365703723,1749835867210,-995.989812,0.000249,7]
[365703724,1749836010809,200.0,0.00023946,120]
[365703726,1749836070751,200.0,0.00024013,120]
[365703948,1749836196404,638.4766685,0.00020772,120]
[365703949,1749836312970,1000.0,0.00024,120]
[365703950,1749836314193,1000.0,0.00024,120]